Workbook

Sheet Меню 30 руб.!!
A2: Примерное цикличное десятидневное меню дополнительного питания для учащихся группы продленного дня образовательных учреждений Альметьевского муниципального района Республики Татарстан
A3: Наименование продуктов | B3: Выход,г | C3: Белки | D3: Жиры | E3: Угл-ды | F3: Энер.ценность (ККАЛ) | G3: В1 | H3: С | I3: А | J3: Е | K3: Са | L3: Р | M3: Mg | N3: Fe
A4: 1-ая неделя
A5: ПОНЕДЕЛЬНИК
A6: Щи из свежей капусты с мясными фрикадельками, со сметаной | B6: 250/22/10 | C6: 6.41 | D6: 9.03 | E6: 8.43 | F6: 149.09 | G6: 0.08 | H6: 15.93 | I6: 14.40 | J6: 2.52 | K6: 62.78 | L6: 100.79 | M6: 30.11 | N6: 1.19
A7: Чай с сахаром | B7: 190/10 | C7: 0.07 | D7: 0.02 | E7: 10.00 | F7: 40.00 | H7: 0.03 | K7: 10.95 | L7: 2.80 | M7: 1.40 | N7: 0.26
A8: Хлеб ржаной | B8: 30 | C8: 1.98 | D8: 0.36 | E8: 11.88 | F8: 59.40 | G8: 0.03 | H8: 0.00 | I8: 0.0 | J8: 0.28 | K8: 5.8 | L8: 30 | M8: 9.4 | N8: 0.78
A9: Итого: | B9: 512 | C9: =C6+C7+C8 -> 8.46 | D9: =D6+D7+D8 -> 9.41 | E9: 30.31 | F9: 248.49 | G9: 0.11 | H9: 15.96 | I9: 14.40 | J9: 2.80 | K9: 79.53 | L9: 133.59 | M9: 40.91 | N9: 2.23
A11: ВТОРНИК
A12: Суп картофельный с пшенной крупой на мясном бульоне с мясом говядины | B12: 250/10 | C12: 4.77 | D12: 3.09 | E12: 12.16 | F12: 100.58 | G12: 0.10 | H12: 8.30 | I12: 0.00 | J12: 1.28 | K12: 27.98 | L12: 78.89 | M12: 25.74 | N12: 1.11
A13: Кисель | B13: 200 | C13: 0.6 | D13: 0.1 | E13: 20.2 | F13: 83.6 | G13: 0.002 | H13: 1.1 | K13: 15.7 | L13: 16.3 | M13: 3.36 | N13: 0.37
A14: Хлеб ржаной | B14: 30 | C14: 1.98 | D14: 0.36 | E14: 11.88 | F14: 59.40 | G14: 0.03 | H14: 0.00 | I14: 0.0 | J14: 0.28 | K14: 5.8 | L14: 30 | M14: 9.4 | N14: 0.78
A15: Итого: | B15: 490 | C15: =SUM(C12:C14) -> 7.35 | D15: =SUM(D12:D14) -> 3.55 | E15: 44.24 | F15: 243.58 | G15: 0.13 | H15: 9.40 | I15: 0.00 | J15: 1.56 | K15: 49.48 | L15: 125.19 | M15: 38.50 | N15: 2.26
A17: СРЕДА
A18: Суп из овощей на курином бульоне с мясом птицы, со сметаной | B18: 250/10/10 | C18: 4.19 | D18: 8.34 | E18: 9.54 | F18: 137.65 | G18: 0.08 | H18: 10.65 | I18: 15.82 | J18: 2.45 | K18: 49.01 | L18: 71.78 | M18: 23.68 | N18: 0.98
A19: Напиток из изюма | B19: 200 | C19: 0.346 | D19: 0.076 | E19: 19.85 | F19: 82.2 | G19: 0.022 | H19: 0 | I19: 0 | J19: 0.076 | K19: 20.32 | L19: 19.36 | M19: 8.12 | N19: 0.45
A20: Хлеб ржаной | B20: 30 | C20: 1.98 | D20: 0.36 | E20: 11.88 | F20: 59.40 | G20: 0.03 | H20: 0.00 | I20: 0.0 | J20: 0.28 | K20: 5.8 | L20: 30 | M20: 9.4 | N20: 0.78
A21: Итого: | B21: 500 | C21: =SUM(C18:C20) -> 6.51 | D21: =SUM(D18:D20) -> 8.78 | E21: 41.27 | F21: 279.25 | G21: 0.14 | H21: 10.65 | I21: 15.82 | J21: 2.80 | K21: 75.13 | L21: 121.14 | M21: 41.20 | N21: 2.21
A23: ЧЕТВЕРГ
A24: Суп-лапша домашняя с мясом птицы | B24: 250/10 | C24: 4.91 | D24: 7.40 | E24: 11.65 | F24: 141.95 | G24: 0.05 | H24: 0.74 | I24: 18.32 | J24: 2.67 | K24: 33.91 | L24: 54.90 | M24: 12.70 | N24: 0.84
A26: Чай с сахаром | B26: 190/10 | C26: 0.07 | D26: 0.02 | E26: 10.00 | F26: 40.00 | H26: 0.03 | K26: 10.95 | L26: 2.80 | M26: 1.40 | N26: 0.26
A27: Хлеб ржаной | B27: 30 | C27: 1.98 | D27: 0.36 | E27: 11.88 | F27: 59.40 | G27: 0.03 | H27: 0.00 | I27: 0.0 | J27: 0.28 | K27: 5.8 | L27: 30 | M27: 9.4 | N27: 0.78
A28: Итого: | B28: 490 | C28: =SUM(C24:C27) -> 6.96 | D28: =SUM(D24:D27) -> 7.78 | E28: 33.53 | F28: 241.35 | G28: 0.09 | H28: 0.77 | I28: 18.32 | J28: 2.95 | K28: 50.66 | L28: 87.70 | M28: 23.50 | N28: 1.88
A30: ПЯТНИЦА
A31: Рассольник ленинградский с мясными фрикадельками, со сметаной | B31: 250/22/10 | C31: 6.67 | D31: 9.17 | E31: 12.50 | F31: 166.59 | G31: 0.11 | H31: 8.53 | I31: 14.40 | J31: 2.52 | K31: 42.68 | L31: 108.51 | M31: 32.16 | N31: 1.29
A32: Напиток из шиповника | B32: 200 | C32: 0.678 | D32: 0.278 | E32: 10.76 | F32: 48.2 | G32: 0.012 | H32: 100 | I32: 0 | J32: 0.76 | K32: 21.34 | L32: 3.44 | M32: 3.44 | N32: 0.634
A33: Хлеб ржаной | B33: 30 | C33: 1.98 | D33: 0.36 | E33: 11.88 | F33: 59.40 | G33: 0.03 | H33: 0.00 | I33: 0.0 | J33: 0.28 | K33: 5.8 | L33: 30 | M33: 9.4 | N33: 0.78
A34: Итого: | B34: 512 | C34: =SUM(C31:C33) -> 9.32 | D34: 9.81 | E34: 35.14 | F34: 274.19 | G34: 0.16 | H34: 108.53 | I34: 14.40 | J34: 3.56 | K34: 69.82 | L34: 141.95 | M34: 45.00 | N34: 2.70
A35: Всего за 5 дней 1 недели: | B35: =B9+B15+B21+B28+B34 -> 2504 | C35: =C9+C15+C21+C28+C34 -> 38.61 | D35: =D9+D15+D21+D28+D34 -> 39.32 | E35: 184.50 | F35: 1286.87 | G35: 0.63 | H35: 145.30 | I35: 62.94 | J35: 13.67 | K35: 324.63 | L35: 609.56 | M35: 189.11 | N35: 11.28
A36: 2-ая неделя
A37: ПОНЕДЕЛЬНИК
A38: Борщ из свежей капусты с мясом птицы, со сметаной | B38: 250/10/10 | C38: 4.40 | D38: 8.28 | E38: 11.33 | F38: 146.15 | G38: 0.06 | H38: 10.95 | I38: 15.82 | J38: 2.52 | K38: 63.89 | L38: 77.10 | M38: 29.05 | N38: 1.43
A40: Компот из сухофруктов | B40: 200 | C40: 0.662 | D40: 0.09 | E40: 22.03 | F40: 92.9 | G40: 0.016 | H40: 0.726 | I40: 0 | J40: 0.508 | K40: 32.48 | L40: 23.44 | M40: 17.46 | N40: 0.698
A41: Хлеб ржаной | B41: 30 | C41: 1.98 | D41: 0.36 | E41: 11.88 | F41: 59.40 | G41: 0.03 | H41: 0.00 | I41: 0.0 | J41: 0.28 | K41: 5.8 | L41: 30 | M41: 9.4 | N41: 0.78
A42: Итого: | B42: 500 | C42: =SUM(C38:C41) -> 7.04 | D42: =SUM(D38:D41) -> 8.73 | E42: 45.24 | F42: 298.45 | G42: 0.11 | H42: 11.68 | I42: 15.82 | J42: 3.31 | K42: 102.17 | L42: 130.54 | M42: 55.91 | N42: 2.91
A44: ВТОРНИК
A45: Суп картофельный с горохом, с мясными фрикадельками | B45: 250/22 | C45: 15.37 | D45: 13.12 | E45: 33.23 | F45: 339.64 | G45: 0.47 | H45: 11.76 | I45: 4.40 | J45: 4.99 | K45: 90.08 | L45: 221.89 | M45: 78.23 | N45: 4.44
A46: Напиток из изюма | B46: 200 | C46: 0.35 | D46: 0.08 | E46: 19.85 | F46: 82.20 | G46: 0.02 | H46: 0.00 | I46: 0.00 | J46: 0.08 | K46: 20.32 | L46: 19.36 | M46: 8.12 | N46: 0.45
A47: Хлеб ржаной | B47: 30 | C47: 1.98 | D47: 0.36 | E47: 11.88 | F47: 59.40 | G47: 0.03 | H47: 0.00 | I47: 0.0 | J47: 0.28 | K47: 5.8 | L47: 30 | M47: 9.4 | N47: 0.78
A48: Итого: | B48: 502 | C48: =C45+C46+C47 -> 17.69 | D48: =D45+D46+D47 -> 13.56 | E48: 64.96 | F48: 481.24 | G48: 0.53 | H48: 11.76 | I48: 4.40 | J48: 5.35 | K48: 116.20 | L48: 271.25 | M48: 95.75 | N48: 5.67
A50: СРЕДА
A51: Рассольник ленинградский с куриными фрикадельками, со сметаной | B51: 250/22/10 | C51: 5.28 | D51: 9.50 | E51: 14.09 | F51: 168.77 | G51: 0.10 | H51: 8.64 | I51: 18.76 | J51: 2.43 | K51: 48.07 | L51: 85.73 | M51: 28.25 | N51: 1.19
A52: Кисель | B52: 200 | C52: 0.6 | D52: 0.1 | E52: 20.2 | F52: 83.6 | G52: 0.002 | H52: 1.1 | K52: 15.7 | L52: 16.3 | M52: 3.36 | N52: 0.37
A53: Хлеб ржаной | B53: 30 | C53: 1.98 | D53: 0.36 | E53: 11.88 | F53: 59.40 | G53: 0.03 | H53: 0.00 | I53: 0.0 | J53: 0.28 | K53: 5.8 | L53: 30 | M53: 9.4 | N53: 0.78
A54: Итого: | B54: 512 | C54: =C51+C52+C53 -> 7.86 | D54: =D51+D52+D53 -> 9.96 | E54: 46.17 | F54: 311.77 | G54: 0.14 | H54: 9.74 | I54: 18.76 | J54: 2.71 | K54: 69.57 | L54: 132.03 | M54: 41.01 | N54: 2.34
A56: ЧЕТВЕРГ
A57: Суп картофельный с фасолью, с мясными фрикадельками | B57: 250/22 | C57: 9.51 | D57: 7.92 | E57: 16.30 | F57: 176.39 | G57: 0.17 | H57: 5.92 | I57: 4.40 | J57: 2.58 | K57: 55.01 | L57: 183.66 | M57: 45.38 | N57: 2.15
A58: Чай с сахаром | B58: 190/10 | C58: 0.07 | D58: 0.02 | E58: 10 | F58: 40.00 | H58: 0.03 | K58: 10.95 | L58: 2.8 | M58: 1.4 | N58: 0.26
A59: Хлеб ржаной | B59: 30 | C59: 1.98 | D59: 0.36 | E59: 11.88 | F59: 59.40 | G59: 0.03 | H59: 0.00 | I59: 0.0 | J59: 0.28 | K59: 5.8 | L59: 30 | M59: 9.4 | N59: 0.78
A60: Итого: | B60: 502 | C60: =C57+C58+C59 -> 11.56 | D60: =D57+D58+D59 -> 8.30 | E60: 38.18 | F60: 275.79 | G60: 0.20 | H60: 5.95 | I60: 4.40 | J60: 2.86 | K60: 71.76 | L60: 216.46 | M60: 56.18 | N60: 3.19
A62: ПЯТНИЦА
A63: Суп картофельный с клецками с мясом птицы | B63: 250/10 | C63: 5.90 | D63: 6.45 | E63: 18.83 | F63: 170.45 | G63: 0.11 | H63: 5.99 | I63: 26.87 | J63: 1.72 | K63: 38.76 | L63: 88.63 | M63: 27.38 | N63: 1.36
A64: Напиток из шиповника | B64: 200 | C64: 0.678 | D64: 0.278 | E64: 10.76 | F64: 48.2 | G64: 0.012 | H64: 100 | I64: 0 | J64: 0.76 | K64: 21.34 | L64: 3.44 | M64: 3.44 | N64: 0.634
A65: Хлеб ржаной | B65: 30 | C65: 1.98 | D65: 0.36 | E65: 11.88 | F65: 59.40 | G65: 0.03 | H65: 0.00 | I65: 0.0 | J65: 0.28 | K65: 5.8 | L65: 30 | M65: 9.4 | N65: 0.78
A66: Итого: | B66: 490 | C66: =C63+C64+C65 -> 8.6 | D66: =D63+D64+D65 -> 7.1 | E66: 41.5 | F66: 278.1 | G66: 0.2 | H66: 106.0 | I66: 26.9 | J66: 2.8 | K66: 65.9 | L66: 122.1 | M66: 40.2 | N66: 2.8
A67: Всего за 5 дней 2 недели: | B67: =B42+B48+B54+B66+B60 -> 2506 | C67: =C42+C48+C54+C66+C60 -> 52.71 | D67: 47.63 | E67: 236.02 | F67: 1645.30 | G67: 1.13 | H67: 145.11 | I67: 70.25 | J67: 16.98 | K67: 425.60 | L67: 872.34 | M67: 289.08 | N67: 16.89
A68: Всего за 10 дней: | B68: =B35+B67 -> 5010 | C68: =C35+C67 -> 91.32 | D68: 86.95 | E68: 420.52 | F68: 2932.17 | G68: 1.76 | H68: 290.41 | I68: 133.19 | J68: 30.65 | K68: 750.24 | L68: 1481.90 | M68: 478.19 | N68: 28.17
A69: В среднем на 1 учащегося в день | B69: =B68/10 -> 501 | C69: =C68/10 -> 9.13 | D69: 8.70 | E69: 42.05 | F69: 293.22 | G69: 0.18 | H69: 29.04 | I69: 13.32 | J69: 3.06 | K69: 75.02 | L69: 148.19 | M69: 47.82 | N69: 2.82
